fUSD/lending_fUSD_20240113
["ID","MTS","AMOUNT","RATE_DAILY","PERIOD"]
[311513087,1705171841728,-505.377934,0.00022129,2]
[311513088,1705171841737,-500.0,0.00022129,2]
[311513090,1705171841747,-500.0,0.00022129,2]
[311513092,1705171841758,-500.0,0.00022129,2]
[311513094,1705171841770,-500.0,0.00022129,2]
[311513096,1705171841779,-500.0,0.00022129,2]
[311513098,1705171841789,-500.0,0.00022129,2]
[311513100,1705171841798,-500.0,0.00022129,2]
[311513102,1705171841808,-500.0,0.00022129,2]
[311513104,1705171841817,-500.0,0.00022129,2]
[311513106,1705171841826,-500.0,0.00022129,2]
[311513108,1705171841836,-500.0,0.00022129,2]
[311513111,1705171841846,-500.0,0.00022129,2]
[311513113,1705171841855,-500.0,0.00022129,2]
[311513115,1705171841864,-500.0,0.00022129,2]
[311513117,1705171841873,-500.0,0.00022129,2]
[311513119,1705171841883,-500.0,0.00022129,2]
[311513121,1705171841892,-500.0,0.00022129,2]
[311513123,1705171841902,-400.23377703,0.00022129,2]
[311513125,1705171841911,-500.0,0.00022129,2]
[311513127,1705171841921,-500.0,0.00022129,2]
[311513129,1705171841930,-500.0,0.00022129,2]
[311513131,1705171841939,-500.0,0.00022129,2]
[311513133,1705171841948,-500.0,0.00022129,2]
[311513135,1705171841957,-500.0,0.00022129,2]
[311513137,1705171841967,-500.0,0.00022129,2]
[311513139,1705171841976,-500.0,0.00022129,2]
[311513141,1705171841987,-500.0,0.00022129,2]
[311513143,1705171841997,-500.0,0.00022129,2]
[311513145,1705171842006,-500.0,0.00022129,2]
[311513147,1705171842018,-500.0,0.00022129,2]
[311513150,1705171842027,-553.47392462,0.00022129,2]
[311513152,1705171842037,-500.0,0.00022129,2]
[311513154,1705171842046,-500.0,0.00022129,2]
[311513156,1705171842055,-500.0,0.00022129,2]
[311513158,1705171842064,-500.0,0.00022129,2]
[311513160,1705171842073,-500.0,0.00022129,2]
[311513162,1705171842083,-500.0,0.00022129,2]
[311513164,1705171842092,-500.0,0.00022129,2]
[311513166,1705171842102,-500.0,0.00022129,2]
[311513168,1705171842111,-500.0,0.00022129,2]
[311513170,1705171842122,-607.26,0.00022129,2]
[311513172,1705171842131,-500.0,0.00022129,2]
[311513174,1705171842140,-359.61,0.00022129,2]
[311513176,1705171842149,-500.0,0.00022129,2]
[311513178,1705171842159,-500.0,0.00022129,2]
[311513180,1705171842168,-9999.99,0.00022131,2]
[311513182,1705171842177,-723.44,0.00022131,2]
[311513184,1705171842186,-3680.7,0.00022136,2]
[311513186,1705171842195,-500.0,0.00022136,2]
[311513188,1705171842205,-843.37,0.00022136,2]
[311513190,1705171842214,-500.0,0.00022136,2]
[311513193,1705171842223,-500.0,0.00022136,2]
[311513195,1705171842233,-500.0,0.00022136,2]
[311513197,1705171842242,-1896.4,0.00022136,2]
[311513199,1705171842251,-500.0,0.00022136,2]
[311513201,1705171842260,-1647.75,0.00022136,2]
[311513203,1705171842271,-665.11,0.00022136,2]
[311513205,1705171842280,-660.19,0.00022136,2]
[311513207,1705171842290,-454.92,0.00022136,2]
[311513209,1705171842299,-500.0,0.00022136,2]
[311513211,1705171842308,-500.0,0.00022136,2]
[311513213,1705171842317,-352.29,0.00022136,2]
[311513215,1705171842326,-18486.63,0.00022136,2]
[311513217,1705171842335,-716.53,0.00022137,2]
[311513219,1705171842345,-3165.56,0.00022164,2]
[311513221,1705171842354,-797.73,0.00022164,2]
[311513223,1705171842363,-276.07,0.00022167,2]
[311513225,1705171842372,-719.21,0.00022172,2]
[311513227,1705171842382,-154.1,0.00022177,2]
[311513229,1705171842391,-736.25,0.00022179,2]
[311513231,1705171842400,-308.69991632,0.00022181,2]
[311513233,1705171842410,-420.02104948,0.00022185,2]
[311513235,1705171842419,-220.76003917,0.00022185,2]
[311513237,1705171842428,-202.94800345,0.00022185,2]
[311513239,1705171842438,-155.0,0.00022185,2]
[311513241,1705171842447,-155.50144254,0.00022185,2]
[311513243,1705171842458,-155.90591231,0.00022185,2]
[311513246,1705171842467,-274.28692077,0.00022185,2]
[311513248,1705171842477,-163.45351284,0.00022185,2]
[311513250,1705171842486,-1799.03566952,0.00022185,2]
[311513252,1705171842495,-3052.64896283,0.00022185,2]
[311513254,1705171842504,-155.0,0.00022185,2]
[311513256,1705171842513,-155.43994557,0.00022185,2]
[311513258,1705171842524,-155.6555082,0.00022185,2]
[311513260,1705171842533,-271.36923705,0.00022185,2]
[311513262,1705171842543,-486.52332301,0.00022185,2]
[311513264,1705171842552,-169.44603986,0.00022185,2]
[311513266,1705171842562,-1043.80845818,0.00022185,2]
[311513268,1705171842571,-219.21849617,0.00022185,2]
[311513270,1705171842581,-347.09333632,0.00022185,2]
[311513272,1705171842591,-270.92491801,0.00022185,2]
[311513274,1705171842600,-378.9441706,0.00022185,2]
[311513276,1705171842609,-157.92695517,0.00022185,2]
[311513278,1705171842618,-155.0,0.00022185,2]
[311513280,1705171842627,-523.27664451,0.00022185,2]
[311513282,1705171842638,-244.11212792,0.00022185,2]
[311513284,1705171842647,-1267.88556379,0.00022185,2]
[311513286,1705171842656,-155.84109243,0.00022185,2]
[311513288,1705171842666,-188.85742129,0.00022185,2]
[311513290,1705171842680,-2604.55916708,0.00022185,2]
[311513292,1705171842689,-202.95261036,0.00022185,2]
[311513294,1705171842699,-172.29367536,0.00022185,2]
[311513296,1705171842708,-3932.66157849,0.00022185,2]
[311513299,1705171842719,-195.37300378,0.00022185,2]
[311513300,1705171842730,-500.72754044,0.00022185,2]
[311513303,1705171842739,-322.29148186,0.00022185,2]
[311513306,1705171842749,-434.05206646,0.00022185,2]
[311513309,1705171842758,-348.70415271,0.00022185,2]
[311513312,1705171842767,-156.59978354,0.00022185,2]
[311513314,1705171842776,-158.65540183,0.00022185,2]
[311513316,1705171842786,-301.14861586,0.00022187,2]
[311513318,1705171842796,-155.75273262,0.00022187,2]
[311513321,1705171842805,-1770.80615665,0.00022187,2]
[311513324,1705171842815,-531.14690522,0.00022187,2]
[311513327,1705171842825,-232.63119894,0.00022187,2]
[311513331,1705171842835,-155.49520958,0.00022187,2]
[311513334,1705171842844,-182.17402601,0.00022187,2]
[311513337,1705171842854,-155.36166347,0.00022187,2]
[311513340,1705171842864,-161.21857687,0.00022187,2]
[311513343,1705171842873,-650.75415232,0.00022187,2]
[311513377,1705171843159,-308.16945006,0.00022187,2]
[311513379,1705171843170,-161.88189063,0.00022187,2]
[311513381,1705171843180,-214.99157807,0.00022187,2]
[311513383,1705171843189,-155.42075614,0.00022187,2]
[311513385,1705171843198,-155.70944369,0.00022187,2]
[311513387,1705171843207,-427.60812227,0.00022187,2]
[311513389,1705171843217,-161.7736666,0.00022187,2]
[311513391,1705171843226,-3937.41330267,0.00022187,2]
[311513393,1705171843236,-400.0,0.00022187,2]
[311513395,1705171843245,-589.26249427,0.00022187,2]
[311513397,1705171843255,-686.08166058,0.00022187,2]
[311513400,1705171843265,-207.6186378,0.00022187,2]
[311513402,1705171843279,-155.0,0.00022187,2]
[311513404,1705171843288,-155.0,0.00022187,2]
[311513406,1705171843298,-2049.09728565,0.00022187,2]
[311513408,1705171843309,-166.28493638,0.00022187,2]
[311513410,1705171843318,-206.3890547,0.00022187,2]
[311513412,1705171843328,-157.96436332,0.00022187,2]
[311513414,1705171843337,-285.24888138,0.00022187,2]
[311513416,1705171843347,-376.13162559,0.00022187,2]
[311513418,1705171843356,-234.81000391,0.00022187,2]
[311513420,1705171843365,-485.5928344,0.00022187,2]
[311513422,1705171843374,-155.10772643,0.00022187,2]
[311513424,1705171843384,-206.29751443,0.00022187,2]
[311513426,1705171843393,-267.20940415,0.00022187,2]
[311513428,1705171843402,-174.25002141,0.00022187,2]
[311513430,1705171843412,-2681.35430511,0.00022187,2]
[311513432,1705171843422,-157.01318614,0.00022187,2]
[311513435,1705171843431,-3324.49211435,0.00022187,2]
[311513437,1705171843440,-155.0,0.00022187,2]
[311513440,1705171843450,-167.79420251,0.00022187,2]
[311513442,1705171843459,-660.04374522,0.00022187,2]
[311513444,1705171843468,-720.39,0.00022188,2]
[311513446,1705171843477,-729.57,0.00022188,2]
[311513447,1705171843486,-729.5,0.00022188,2]
[311513450,1705171843495,-500.0,0.00022188,2]
[311513452,1705171843505,-734.64,0.00022188,2]
[311513454,1705171843514,-719.12,0.00022189,2]
[311513456,1705171843527,-163.80743956,0.00022189,2]
[311513458,1705171843536,-1319.78854175,0.00022189,2]
[311513460,1705171843544,-756.68956947,0.00022189,2]
[311513462,1705171843554,-262.84030059,0.00022189,2]
[311513464,1705171843563,-155.0,0.00022189,2]
[311513466,1705171843572,-182.53353143,0.00022189,2]
[311513468,1705171843581,-301.79110902,0.00022189,2]
[311513469,1705171843590,-155.0,0.00022189,2]
[311513470,1705171843600,-155.12727468,0.00022189,2]
[311513471,1705171843609,-327.81139673,0.00022189,2]
[311513472,1705171843619,-687.23183511,0.00022189,2]
[311513473,1705171843628,-190.74513272,0.00022189,2]
[311513474,1705171843637,-202.95473276,0.00022189,2]
[311513475,1705171843647,-537.06141587,0.00022189,2]
[311513476,1705171843656,-720.44889323,0.00022189,2]
[311513477,1705171843665,-264.62708339,0.00022189,2]
[311513479,1705171843676,-250.5942067,0.00022189,2]
[311513481,1705171843685,-172.16798281,0.00022189,2]
[311513483,1705171843695,-201.47626641,0.00022189,2]
[311513485,1705171843704,-278.31410173,0.00022189,2]
[311513487,1705171843713,-333.65536306,0.00022189,2]
[311513489,1705171843722,-541.55394128,0.00022189,2]
[311513491,1705171843731,-162.16116158,0.00022189,2]
[311513493,1705171843741,-166.84954962,0.00022189,2]
[311513495,1705171843750,-727.43,0.00022189,2]
[311513497,1705171843759,-318.39239097,0.0002219,2]
[311513500,1705171843769,-500.0,0.0002219,2]
[311513502,1705171843778,-500.0,0.0002219,2]
[311513504,1705171843788,-500.0,0.0002219,2]
[311513506,1705171843798,-500.0,0.0002219,2]
[311513508,1705171843808,-500.0,0.0002219,2]
[311513510,1705171843817,-500.0,0.0002219,2]
[311513512,1705171843826,-500.0,0.0002219,2]
[311513513,1705171843836,-500.0,0.0002219,2]
[311513516,1705171843846,-500.0,0.0002219,2]
[311513518,1705171843855,-500.0,0.0002219,2]
[311513520,1705171843864,-500.0,0.0002219,2]
[311513522,1705171843873,-500.0,0.0002219,2]
[311513524,1705171843882,-500.0,0.0002219,2]
[311513526,1705171843891,-181.5994819,0.0002219,2]
[311513528,1705171843900,-500.0,0.0002219,2]
[311513530,1705171843910,-500.0,0.0002219,2]
[311513532,1705171843919,-500.0,0.0002219,2]
[311513534,1705171843928,-500.0,0.0002219,2]
[311513536,1705171843937,-500.0,0.0002219,2]
[311513538,1705171843947,-500.0,0.0002219,2]
[311513540,1705171843956,-500.0,0.0002219,2]
[311513542,1705171843966,-500.0,0.0002219,2]
[311513544,1705171843975,-500.0,0.0002219,2]
[311513546,1705171843984,-500.0,0.0002219,2]
[311513548,1705171843994,-500.0,0.0002219,2]
[311513550,1705171844004,-500.0,0.0002219,2]
[311513552,1705171844013,-500.0,0.0002219,2]
[311513554,1705171844023,-500.0,0.0002219,2]
[311513556,1705171844032,-500.0,0.0002219,2]
[311513558,1705171844042,-500.0,0.0002219,2]
[311513560,1705171844051,-909.99,0.0002219,2]
[311513562,1705171844061,-909.99,0.0002219,2]
[311513564,1705171844070,-500.0,0.0002219,2]
[311513566,1705171844080,-500.0,0.0002219,2]
[311513568,1705171844089,-500.0,0.0002219,2]
[311513570,1705171844099,-500.0,0.0002219,2]
[311513572,1705171844108,-500.0,0.0002219,2]
[311513574,1705171844117,-647.12,0.0002219,2]
[311513576,1705171844126,-500.0,0.0002219,2]
[311513578,1705171844136,-209.0,0.0002219,2]
[311513581,1705171844145,-500.0,0.0002219,2]
[311513583,1705171844154,-500.0,0.0002219,2]
[311513585,1705171844163,-500.0,0.0002219,2]
[311513587,1705171844173,-500.0,0.0002219,2]
[311513589,1705171844183,-500.0,0.0002219,2]
[311513591,1705171844192,-500.0,0.0002219,2]
[311513593,1705171844201,-500.0,0.0002219,2]
[311513595,1705171844211,-500.0,0.0002219,2]
[311513597,1705171844220,-500.0,0.0002219,2]
[311513599,1705171844229,-500.0,0.0002219,2]
[311513601,1705171844238,-500.0,0.0002219,2]
[311513603,1705171844248,-500.0,0.0002219,2]
[311513605,1705171844258,-500.0,0.0002219,2]
[311513607,1705171844268,-500.0,0.0002219,2]
[311513609,1705171844278,-1209.11,0.0002219,2]
[311513611,1705171844287,-1209.11,0.0002219,2]
[311513613,1705171844296,-500.0,0.0002219,2]
[311513615,1705171844305,-500.0,0.0002219,2]
[311513617,1705171844315,-500.0,0.0002219,2]
[311513619,1705171844325,-500.0,0.0002219,2]
[311513621,1705171844334,-174.88,0.0002219,2]
[311513623,1705171844343,-500.0,0.0002219,2]
[311513625,1705171844353,-500.0,0.0002219,2]
[311513627,1705171844362,-3680.7,0.0002219,2]
[311513629,1705171844371,-3680.7,0.0002219,2]
[311513631,1705171844380,-500.0,0.0002219,2]
[311513633,1705171844389,-500.0,0.0002219,2]
[311513635,1705171844399,-500.0,0.0002219,2]
[311513637,1705171844408,-500.0,0.0002219,2]
[311513640,1705171844417,-716.29,0.0002219,2]
[311513641,1705171844427,-716.29,0.0002219,2]
[311513644,1705171844436,-548.62596765,0.0002219,2]
[311513646,1705171844446,-843.37,0.0002219,2]
[311513648,1705171844455,-843.37,0.0002219,2]
[311513650,1705171844464,-500.0,0.0002219,2]
[311513652,1705171844474,-500.0,0.0002219,2]
[311513654,1705171844484,-500.0,0.0002219,2]
[311513656,1705171844494,-500.0,0.0002219,2]
[311513657,1705171844503,-387.1,0.0002219,2]
[311513660,1705171844514,-500.0,0.0002219,2]
[311513662,1705171844524,-500.0,0.0002219,2]
[311513664,1705171844533,-500.0,0.0002219,2]
[311513666,1705171844542,-1896.4,0.0002219,2]
[311513667,1705171844552,-1896.4,0.0002219,2]
[311513670,1705171844561,-500.0,0.0002219,2]
[311513672,1705171844570,-500.0,0.0002219,2]
[311513674,1705171844580,-500.0,0.0002219,2]
[311513676,1705171844589,-500.0,0.0002219,2]
[311513678,1705171844598,-500.0,0.0002219,2]
[311513680,1705171844607,-500.0,0.0002219,2]
[311513682,1705171844616,-500.0,0.0002219,2]
[311513684,1705171844625,-500.0,0.0002219,2]
[311513686,1705171844634,-500.0,0.0002219,2]
[311513688,1705171844643,-500.0,0.0002219,2]
[311513690,1705171844652,-500.0,0.0002219,2]
[311513692,1705171844662,-500.0,0.0002219,2]
[311513694,1705171844672,-500.0,0.0002219,2]
[311513696,1705171844683,-500.0,0.0002219,2]
[311513698,1705171844692,-519.19,0.0002219,2]
[311513699,1705171844701,-500.0,0.0002219,2]
[311513701,1705171844711,-500.0,0.0002219,2]
[311513703,1705171844722,-500.0,0.0002219,2]
[311513705,1705171844732,-500.0,0.0002219,2]
[311513707,1705171844741,-500.0,0.0002219,2]
[311513709,1705171844750,-500.0,0.0002219,2]
[311513711,1705171844760,-500.0,0.0002219,2]
[311513713,1705171844769,-500.0,0.0002219,2]
[311513715,1705171844778,-500.0,0.0002219,2]
[311513717,1705171844788,-500.0,0.0002219,2]
[311513719,1705171844797,-517.61,0.0002219,2]
[311513722,1705171844807,-1647.75,0.0002219,2]
[311513724,1705171844816,-1647.75,0.0002219,2]
[311513726,1705171844826,-500.0,0.0002219,2]
[311513728,1705171844835,-500.0,0.0002219,2]
[311513730,1705171844845,-500.0,0.0002219,2]
[311513732,1705171844854,-500.0,0.0002219,2]
[311513734,1705171844863,-500.0,0.0002219,2]
[311513736,1705171844872,-500.0,0.0002219,2]
[311513738,1705171844881,-500.0,0.0002219,2]
[311513740,1705171844890,-518.54,0.0002219,2]
[311513742,1705171844900,-500.0,0.0002219,2]
[311513744,1705171844909,-500.0,0.0002219,2]
[311513746,1705171844918,-665.11,0.0002219,2]
[311513748,1705171844928,-665.11,0.0002219,2]
[311513750,1705171844937,-500.0,0.0002219,2]
[311513752,1705171844946,-500.0,0.0002219,2]
[311513754,1705171844955,-500.0,0.0002219,2]
[311513756,1705171844964,-500.0,0.0002219,2]
[311513758,1705171844974,-500.0,0.0002219,2]
[311513760,1705171844983,-500.0,0.0002219,2]
[311513762,1705171844993,-660.19,0.0002219,2]
[311513764,1705171845002,-500.0,0.0002219,2]
[311513766,1705171845011,-660.19,0.0002219,2]
[311513768,1705171845022,-500.0,0.0002219,2]
[311513770,1705171845031,-593.6959589,0.0002219,2]
[311513773,1705171845041,-500.0,0.0002219,2]
[311513774,1705171845050,-517.65,0.0002219,2]
[311513777,1705171845060,-500.0,0.0002219,2]
[311513779,1705171845070,-500.0,0.0002219,2]
[311513781,1705171845079,-500.0,0.0002219,2]
[311513783,1705171845088,-500.0,0.0002219,2]
[311513784,1705171845097,-500.0,0.0002219,2]
[311513787,1705171845107,-500.0,0.0002219,2]
[311513789,1705171845116,-500.0,0.0002219,2]
[311513790,1705171845126,-500.0,0.0002219,2]
[311513793,1705171845135,-500.0,0.0002219,2]
[311513794,1705171845144,-500.0,0.0002219,2]
[311513797,1705171845154,-500.0,0.0002219,2]
[311513799,1705171845163,-213.47,0.0002219,2]
[311513801,1705171845173,-500.0,0.0002219,2]
[311513803,1705171845182,-500.0,0.0002219,2]
[311513805,1705171845191,-500.0,0.0002219,2]
[311513807,1705171845201,-500.0,0.0002219,2]
[311513809,1705171845210,-556.13,0.0002219,2]
[311513811,1705171845219,-503.47,0.0002219,2]
[311513813,1705171845229,-500.0,0.0002219,2]
[311513815,1705171845238,-500.0,0.0002219,2]
[311513817,1705171845248,-500.0,0.0002219,2]
[311513819,1705171845257,-500.0,0.0002219,2]
[311513821,1705171845267,-500.0,0.0002219,2]
[311513823,1705171845281,-500.0,0.0002219,2]
[311513825,1705171845290,-500.0,0.0002219,2]
[311513827,1705171845302,-712.31,0.0002219,2]
[311513829,1705171845311,-422696.28701887,0.00022191,2]
[311513831,1705171845321,-211.34299286,0.00022192,2]
[311513833,1705171845331,-500.0,0.00022192,2]
[311513835,1705171845340,-500.0,0.00022192,2]
[311513837,1705171845350,-500.0,0.00022192,2]
[311513839,1705171845359,-500.0,0.00022192,2]
[311513841,1705171845369,-501.8,0.00022192,2]
[311513843,1705171845378,-500.0,0.00022192,2]
[311513845,1705171845387,-500.0,0.00022192,2]
[311513847,1705171845397,-500.0,0.00022192,2]
[311513849,1705171845406,-500.0,0.00022192,2]
[311513857,1705171845465,-500.0,0.00022192,2]
[311513859,1705171845474,-500.0,0.00022192,2]
[311513861,1705171845483,-500.0,0.00022192,2]
[311513863,1705171845493,-500.0,0.00022192,2]
[311513865,1705171845502,-523.02800986,0.00022192,2]
[311513867,1705171845511,-500.0,0.00022192,2]
[311513869,1705171845524,-500.0,0.00022192,2]
[311513871,1705171845534,-500.0,0.00022192,2]
[311513873,1705171845542,-500.0,0.00022192,2]
[311513875,1705171845551,-500.0,0.00022192,2]
[311513877,1705171845560,-500.0,0.00022192,2]
[311513879,1705171845570,-500.0,0.00022192,2]
[311513881,1705171845579,-500.0,0.00022192,2]
[311513883,1705171845588,-500.0,0.00022192,2]
[311513885,1705171845598,-500.0,0.00022192,2]
[311513887,1705171845607,-500.0,0.00022192,2]
[311513889,1705171845616,-510.45674077,0.00022192,2]
[311513891,1705171845625,-500.0,0.00022192,2]
[311513893,1705171845634,-500.0,0.00022192,2]
[311513895,1705171845643,-500.0,0.00022192,2]
[311513897,1705171845653,-500.0,0.00022192,2]
[311513899,1705171845661,-500.0,0.00022192,2]
[311513901,1705171845673,-718.86,0.00022192,2]
[311513903,1705171845684,-733.65,0.00022192,2]
[311513905,1705171845693,-737.69,0.00022192,2]
[311513907,1705171845702,-736.95,0.00022192,2]
[311513909,1705171845711,-732.88,0.00022192,2]
[311513911,1705171845721,-300.0,0.00022193,2]
[311513913,1705171845730,-300.0,0.00022193,2]
[311513915,1705171845739,-300.0,0.00022193,2]
[311513917,1705171845749,-300.0,0.00022193,2]
[311513920,1705171845771,-268.63755361,0.00022193,2]
[311513922,1705171845781,-500.0,0.00022193,2]
[311513923,1705171845790,-500.0,0.00022193,2]
[311513924,1705171845800,-483.90090493,0.00022193,2]
[311513925,1705171845810,-500.0,0.00022193,2]
[311513926,1705171845819,-500.0,0.00022193,2]
[311513927,1705171845829,-500.0,0.00022193,2]
[311513928,1705171845838,-500.0,0.00022193,2]
[311513929,1705171845848,-500.0,0.00022193,2]
[311513930,1705171845857,-500.0,0.00022193,2]
[311513932,1705171845866,-500.0,0.00022193,2]
[311513934,1705171845875,-500.0,0.00022193,2]
[311513936,1705171845885,-500.0,0.00022193,2]
[311513938,1705171845895,-500.0,0.00022193,2]
[311513940,1705171845904,-500.0,0.00022193,2]
[311513942,1705171845913,-500.0,0.00022193,2]
[311513944,1705171845922,-500.0,0.00022193,2]
[311513946,1705171845932,-500.0,0.00022193,2]
[311513948,1705171845941,-500.0,0.00022193,2]
[311513950,1705171845950,-500.0,0.00022193,2]
[311513953,1705171845959,-500.0,0.00022193,2]
[311513956,1705171845968,-500.0,0.00022193,2]
[311513959,1705171845978,-500.0,0.00022193,2]
[311513961,1705171845987,-500.0,0.00022193,2]
[311513964,1705171845997,-500.0,0.00022193,2]
[311513966,1705171846007,-500.0,0.00022193,2]
[311513968,1705171846016,-500.0,0.00022193,2]
[311513970,1705171846027,-297.88,0.0002221,2]
[311513972,1705171846036,-842.15,0.00022211,2]
[311513974,1705171846046,-176.13,0.00022226,2]
[311513976,1705171846055,-863.03115666,0.00022246,2]
[311513978,1705171846065,-276.07,0.00022279,2]
[311513980,1705171846074,-262.31,0.00022288,2]
[311513982,1705171846083,-842.15,0.00022323,2]
[311513984,1705171846092,-1220.14373989,0.00022328,2]
[311513986,1705171846102,-276.07,0.0002239,2]
[311513988,1705171846111,-321.33,0.00022399,2]
[311513990,1705171846120,-636.13,0.00022399,2]
[311513992,1705171846130,-909.99,0.00022399,2]
[311513994,1705171846139,-500.0,0.00022399,2]
[311513996,1705171846148,-500.0,0.00022399,2]
[311513998,1705171846158,-500.0,0.00022399,2]
[311514000,1705171846167,-304.29,0.00022399,2]
[311514002,1705171846176,-500.0,0.00022399,2]
[311514004,1705171846186,-500.0,0.00022399,2]
[311514006,1705171846195,-500.0,0.00022399,2]
[311514008,1705171846205,-415.73,0.00022399,2]
[311514010,1705171846214,-1209.11,0.00022399,2]
[311514012,1705171846223,-500.0,0.00022399,2]
[311514014,1705171846232,-500.0,0.00022399,2]
[311514016,1705171846242,-500.0,0.00022399,2]
[311514018,1705171846252,-3680.7,0.00022399,2]
[311514020,1705171846261,-500.0,0.00022399,2]
[311514022,1705171846272,-500.0,0.00022399,2]
[311514024,1705171846282,-716.29,0.00022399,2]
[311514026,1705171846291,-843.37,0.00022399,2]
[311514028,1705171846300,-605.20618088,0.00022399,2]
[311514030,1705171846309,-500.0,0.00022399,2]
[311514031,1705171846318,-1896.4,0.00022399,2]
[311514032,1705171846327,-500.0,0.00022399,2]
[311514033,1705171846337,-500.0,0.00022399,2]
[311514034,1705171846347,-500.0,0.00022399,2]
[311514035,1705171846356,-500.0,0.00022399,2]
[311514036,1705171846366,-1647.75,0.00022399,2]
[311514037,1705171846375,-500.0,0.00022399,2]
[311514038,1705171846384,-500.0,0.00022399,2]
[311514039,1705171846393,-665.11,0.00022399,2]
[311514040,1705171846403,-660.19,0.00022399,2]
[311514041,1705171846412,-300.32,0.00022399,2]
[311514042,1705171846421,-500.0,0.00022399,2]
[311514043,1705171846430,-288.82,0.00022399,2]
[311514044,1705171846440,-500.0,0.00022399,2]
[311514045,1705171846449,-500.0,0.00022399,2]
[311514046,1705171846458,-506.55885695,0.00022399,2]
[311514048,1705171846468,-500.0,0.00022399,2]
[311514049,1705171846477,-500.0,0.00022399,2]
[311514051,1705171846486,-129236.66967931,0.000224,2]
[311514052,1705171846495,-297.88,0.00022421,2]
[311514053,1705171846504,-842.15,0.00022434,2]
[311514055,1705171846514,-154.1,0.00022455,2]
[311514057,1705171846525,-863.03115666,0.00022464,2]
[311514058,1705171846534,-242.14,0.00022499,2]
[311514059,1705171846543,-19110.28636174,0.000225,2]
[311514060,1705171846552,-3331.0,0.000225,2]
[311514061,1705171846561,-1525.225971,0.000225,2]
[311514062,1705171846571,-33514.0,0.000225,2]
[311514063,1705171846580,-262.31,0.000225,2]
[311514064,1705171846590,-276.07,0.00022502,2]
[311514065,1705171846599,-300.0,0.00022515,2]
[311514066,1705171846608,-842.15,0.00022546,2]
[311514067,1705171846617,-1220.14373989,0.00022602,2]
[311514068,1705171846626,-155.0,0.0002261,2]
[311514069,1705171846635,-276.07,0.00022613,2]
[311514070,1705171846644,-297.88,0.00022633,2]
[311514071,1705171846653,-842.15,0.00022657,2]
[311514072,1705171846663,-863.03115666,0.00022682,2]
[311514073,1705171846673,-262.31,0.00022713,2]
[311514074,1705171846686,-200.0,0.00022721,2]
[311514075,1705171846696,-276.07,0.00022724,2]
[311514076,1705171846705,-306.60094349,0.00022728,2]
[311514077,1705171846714,-150.0,0.00022729,2]
[311514078,1705171846725,-1500.0,0.00022736,2]
[311514079,1705171846734,-150.0,0.00022738,2]
[311514080,1705171846743,-150.0,0.00022745,2]
[311514081,1705171846753,-150.0,0.00022746,2]
[311514082,1705171846762,-150.0,0.00022757,2]
[311514083,1705171846772,-150.0,0.00022757,2]
[311514084,1705171846781,-150.0,0.00022759,2]
[311514085,1705171846790,-500.0,0.00022769,2]
[311514086,1705171846799,-500.0,0.00022769,2]